Cogmind - Beta 16 @@@ ROGUE MODE // 2025.12.13 @ 20:15:48 Player: Kat Result: Self-destructed Performance ------------- Evolutions (1) 500 Regions Visited (2) 400 Robots Destroyed (37) 185 Value Destroyed (698) 698 Prototype IDs (2) 40 Alien Tech Used (0) 0 Bonus (0) 0 TOTAL SCORE: 1823 Bonus ------- None Cogmind --------- Core Integrity 41/400 Matter 232/300 Energy 100/100 System Corruption 0% Temperature Cool (0) Movement Hovering (292) Ox4 Location -9/Materials Parts ------- > --- POWER (1) -------- (None) > --- PROPULSION (3) --- Improved Hover Unit Improved Hover Unit Improved Hover Unit > --- UTILITY (3) ------ Huge Storage Unit Structural Scanner Improved Targeting Computer > --- WEAPON (2) ------- Assault Rifle Shotgun > --- INVENTORY (25) --- Aluminum Leg Aluminum Leg Wheel Compact Wheel Compact Wheel Heat Sink Cooling System High-capacity Matter Pod (24) Terrain Scan Processor Targeting Computer Tractor Beam Light EM Pulse Cannon Light EM Pulse Cannon Advanced Beam Cannon Light Assault Rifle Peak State ------------ > --- POWER ------------ (None) > --- PROPULSION ------- Improved Hover Unit Improved Hover Unit Improved Hover Unit > --- UTILITY ---------- Huge Storage Unit Structural Scanner Improved Targeting Computer > --- WEAPON ----------- Assault Rifle Shotgun > --- INVENTORY -------- Aluminum Leg Aluminum Leg Wheel Compact Wheel Compact Wheel Heat Sink Cooling System High-capacity Matter Pod Terrain Scan Processor Targeting Computer Tractor Beam Light EM Pulse Cannon Light EM Pulse Cannon Advanced Beam Cannon [Rating: 15] Favorites ----------- Power Light Ion Engine Engine Light Ion Engine Propulsion Compact Wheel Leg Aluminum Leg Wheel Compact Wheel Hover Unit Improved Hover Unit Utility Medium Matter Pod Device Improved Terrain Scanner Storage Medium Matter Pod Processor Improved Targeting Computer Weapon Light Assault Rifle Energy Gun Improved EM Shotgun Energy Cannon Advanced Beam Cannon Ballistic Gun Light Assault Rifle Launcher Grenade Launcher Build | -11 -10 -9 ------- Run | Yrd Mat Mat Slots Evolved 2 | . . 2 Power . | . . . Propulsion 1 | . . 1 Utility 1 | . . 1 Weapon . | . . . Parts Attached 30 | 7 6 17 Power 3 | 1 1 1 Engine 3 | 1 1 1 Core . | . . . Reactor . | . . . Propulsion 11 | 2 1 8 Treads . | . . . Leg 3 | . . 3 Wheel 5 | 2 1 2 Hover 3 | . . 3 Flight . | . . . Utility 8 | 2 3 3 Device 2 | 1 . 1 Storage 3 | 1 2 . Processor 3 | . 1 2 Hackware . | . . . Protection . | . . . Artifact . | . . . Weapon 8 | 2 1 5 Energy Gun 1 | . . 1 Energy Cannon 3 | . . 3 Ballistic Gun 3 | 2 . 1 Ballistic Cannon . | . . . Launcher 1 | . 1 . Special Weapon . | . . . Impact Weapon . | . . . Slashing Weapon . | . . . Piercing Weapon . | . . . Special Melee Weapon . | . . . Unidentified Prototypes 2 | . . 2 Parts Lost 4 | . . 4 Power 2 | . . 2 Propulsion 1 | . . 1 Utility . | . . . Weapon 1 | . . 1 Highest Loss Streak 2 | . . 2 To Critical Strikes . | . . . Average Backups 5 | . 4 8 Power . | . . . Propulsion . | . . 1 Utility 3 | . 3 4 Weapon 1 | . . 1 Tool/Special . | . . . Unused Backups 8 | . 2 6 Power . | . . . Propulsion . | . . . Utility 7 | . 1 6 Weapon . | . . . Tool/Special 1 | . 1 . Average Slot Usage (%) 93 | . 100 88 Engine 9 | . 14 6 Leg 1 | . . 2 Wheel 23 | . 28 18 Hover 2 | . . 5 Device 4 | . 7 2 Storage 19 | . 19 19 Processor 6 | . 1 11 Energy Cannon 2 | . . 5 Ballistic Gun 14 | . 15 13 Launcher 7 | . 12 2 Peak Build Rating 15 | 9 9 15 Average Rating 9 | 5 7 11 On Entrance 5 | . 9 7 Avg Prop Armor Cover (%) . | . . . Naked Turns . | . . . Heaviest Build 93 | 12 89 93 Greatest Support 48 | 26 32 48 Greatest Overweight (x) 12 | . 2 12 Average Overweight (x) 1 | . . 2 Largest Inventory Capacity 25 | 8 25 25 Average Capacity 18 | 7 13 25 Most Carried 15 | 2 7 15 Average Carried 5 | . 4 8 Final Capacity 25 | 8 25 25 Final Carried 15 | . 6 15 Class Distribution -------------------- 100% | Mutant Dominant Class ---------------- Mutant | -10/Materials Mutant | -9/Materials Resources | -11 -10 -9 ----------- Run | Yrd Mat Mat Matter Collected 806 | 200 285 321 Remotely . | . . . Salvage Created 843 | 80 293 470 Parts 69 | 6 23 40 Haulers Intercepted 1 | . . 1 Recyclers Shooed . | . . . Parts Field Recycled . | . . . Retrieved Matter . | . . . Parts Self-Destructed . | . . . Prevented . | . . . Parts Restored . | . . . Kills | -11 -10 -9 ------- Run | Yrd Mat Mat Combat Hostiles Destroyed 22 | . 8 14 Guns 6 | . . 6 Cannons 6 | . . 6 AOE 10 | . 8 2 Classes Destroyed 9 | 2 5 2 Worker 1 | . 1 . Builder 5 | . 1 4 Tunneler 2 | 1 1 . Hauler 1 | . . 1 Recycler 2 | 1 . 1 Watcher 4 | . 3 1 Swarmer 13 | . 3 10 Grunt 8 | . 5 3 Sentry 1 | . . 1 Best Kill Streak 9 | 2 5 9 Combat Bots Only 7 | . 3 7 Max Kills in Single Turn 3 | 1 3 2 Gunslinging . | . . . Exploded 3 | . 3 1 Melee . | . . . Uniques/NPCs Destroyed . | . . . Combat | -11 -10 -9 -------- Run | Yrd Mat Mat Hostile Shots Fired 110 | . 20 90 Missed 30 | . 8 22 Hits 80 | . 12 68 Projectile 80 | . 12 68 Critical Strikes 2 | . 1 1 Damage Taken 930 | . 104 826 Core 397 | . 38 359 Absorbed by Shields . | . . . Core Remaining (%) 92 | 100 84 . Volleys Fired 59 | 7 10 42 Largest 2 | 2 2 2 Hottest 112 | 40 50 112 Shots Fired 112 | 14 19 79 Gun 75 | 14 10 51 Cannon 23 | . . 23 Launcher 14 | . 9 5 Special . | . . . Kinetic 75 | 14 10 51 Thermal 16 | . . 16 Explosive 14 | . 9 5 Electromagnetic 7 | . . 7 Robot Hit Streak 8 | 4 3 8 Robot Miss Streak 6 | 5 6 3 Penetration Max . | . . . Secondary Targets 1 | . . 1 Max Gunslinging Chain 1 | . . 1 Shots Hit Robots 59 | 7 10 42 Core Hits 48 | 3 19 26 Critical Kills . | . . . Critical Parts Destroyed . | . . . Critical Strikes . | . . . Melee Attacks . | . . . Impact . | . . . Slashing . | . . . Piercing . | . . . Sneak Attacks . | . . . Combat Hostiles . | . . . Follow-up Attacks . | . . . Damage Inflicted 1621 | 110 649 862 Guns 473 | 110 26 337 Cannons 286 | . . 286 Explosions 862 | . 623 239 Melee . | . . . Ramming . | . . . Kinetic 473 | 110 26 337 Thermal 309 | . . 309 Explosive 801 | . 623 178 Electromagnetic 38 | . . 38 Impact . | . . . Slashing . | . . . Piercing . | . . . Highest Corruption 1 | . 1 . Average Corruption 1 | . 1 . Corruption Purged . | . . . Corruption Blocked . | . . . Effects 4 | . 4 . Heat Flow Errors 1 | . 1 . Energy Discharges 2 | . 2 . Data Loss (minor) 1 | . 1 . Overload Shots . | . . . Overflow Damage 86 | . . 86 Projectiles 11 | . . 11 Explosions 75 | . . 75 Melee . | . . . Knockbacks . | . . . Impact . | . . . Kinetic . | . . . Secondary . | . . . Self-Inflicted Damage 220 | . . 220 Shots 3 | . . 3 Rammed . | . . . Targets Rammed . | . . . Kicked . | . . . Crushed . | . . . Highest Temperature 157 | . 157 141 Average Temperature 33 | . 33 32 Received Heat Transfer 129 | . 21 108 Siege Activations . | . . . Martial Activations . | . . . Shielding Activations . | . . . Robots Disrupted . | . . . Combat Hostiles . | . . . Robots Corrupted . | . . . Combat Hostiles . | . . . Parts Fried . | . . . Impact Corruptions . | . . . Robots Melted . | . . . Combat Hostiles . | . . . Parts Melted . | . . . Heat Transferred 544 | . . 544 Parts Sabotaged . | . . . Parts Stolen . | . . . Parts Stripped . | . . . Power Chain Reactions 1 | . . 1 Alert | -11 -10 -9 ------- Run | Yrd Mat Mat Maximum Alert Level 1 | . . 1 Low Security (%) 70 | 100 100 37 Level 1 29 | . . 62 Level 2 . | . . . Level 3 . | . . . Level 4 . | . . . Level 5 . | . . . High Security . | . . . Max Security . | . . . Peak Influence 279 | 5 162 279 Initial 48 | . . 48 Average 133 | . 83 198 Influence Increases 915 | 10 362 543 Destroy 0b10 Robot/C 440 | . 160 280 Destroy 0b10 Robot/NC 75 | 10 30 35 Destroy Leader 70 | . 36 34 Successful Hack 31 | . 26 5 Disable Machine 180 | . 60 120 Destroy Structure 104 | . 50 54 Lose Combat Pursuer 15 | . . 15 Influence Decreases 658 | 10 248 400 Entered New Map 66 | . . 66 Time Decay 552 | 10 248 294 Lost Part 40 | . . 40 Squads Dispatched 3 | . 2 1 Investigation 3 | . 2 1 Extermination . | . . . Reinforcement . | . . . Assault . | . . . Garrison . | . . . Intercept . | . . . Searches Triggered . | . . . Construction Impeded . | . . . Haulers Reinforced . | . . . Active Scanning Responses . | . . . Cargo Convoy Interrupts . | . . . Stealth | -11 -10 -9 --------- Run | Yrd Mat Mat Distress Signals 4 | . 1 3 Communications Jammed . | . . . Distress Signals . | . . . Times Spotted 36 | . 13 23 Peak Tracking Total 7 | . 4 7 Tactical Retreats 1 | . . 1 Traps | -11 -10 -9 ------- Run | Yrd Mat Mat Traps Triggered . | . . . Indirectly . | . . . Trap Hack Attempts . | . . . Triggered . | . . . Disarmed . | . . . Reprogrammed . | . . . Reused . | . . . Traps Extracted . | . . . Installed . | . . . Triggered . | . . . Machines | -11 -10 -9 ---------- Run | Yrd Mat Mat Machines Disabled 13 | . 5 8 Max in Single Turn 2 | . 1 2 Machines Repaired . | . . . Machines Dismantled . | . . . Machines Sabotaged . | . . . Overloaded Fab Kills . | . . . Hacking | -11 -10 -9 --------- Run | Yrd Mat Mat Machines Accessed 8 | . 6 2 Terminals 7 | . 5 2 Fabricators . | . . . Repair Stations . | . . . Recycling Units 1 | . 1 . Scanalyzers . | . . . Garrison Access . | . . . Total Hacks 23 | . 18 5 Successful 14 | . 11 3 Failed 9 | . 7 2 Catastrophic 4 | . 3 1 Database Lockouts . | . . . Manual . | . . . Terminals 19 | . 14 5 Fabricators . | . . . Repair Stations . | . . . Recycling Units 4 | . 4 . Scanalyzers . | . . . Garrison Access . | . . . Terminal Hacks 12 | . 9 3 Record 4 | . 2 2 Terminal Index 1 | . . 1 Locate Traps 1 | . 1 . Dispatch Records 1 | . 1 . Maintenance Status 1 | . 1 . Recall Investigation 1 | . 1 . Hauler Manifests 1 | . 1 . Zone Layout 2 | . 2 . Fabricator Hacks . | . . . Repair Station Hacks . | . . . Recycling Unit Hacks 2 | . 2 . Recycle Component 1 | . 1 . Process 1 | . 1 . Scanalyzer . | . . . Garrison Access Hacks . | . . . Unauthorized Hacks . | . . . Terminals . | . . . Fabricators . | . . . Repair Stations . | . . . Recycling Units . | . . . Scanalyzers . | . . . Garrison Access . | . . . Data Cores Recovered . | . . . Used . | . . . Hacking Detections 6 | . 5 1 Full Trace Events 3 | . 2 1 Feedback Events 1 | . 1 . Corruption 1 | . 1 . Feedback Blocked . | . . . Robot Schematics Acquired . | . . . Robots Built . | . . . Authchips . | . . . Time . | . . . Total Robot Build Rating . | . . . Part Schematics Acquired . | . . . Parts Built . | . . . Authchips . | . . . Time . | . . . Total Part Build Rating . | . . . Part Studies Acquired . | . . . Parts Repaired . | . . . Time . | . . . Parts Recycled 1 | . 1 . Recycled Matter 17 | . 17 . Retrieved Matter . | . . . Retrieved Components . | . . . Parts Scanalyzed . | . . . Part Schematics Acquired . | . . . Parts Damaged . | . . . Bothacking | -11 -10 -9 ------------ Run | Yrd Mat Mat Used RIF Installer . | . . . Robots Hacked . | . . . Non-combat . | . . . Combat . | . . . Robot Hacks Applied . | . . . Relay Couplers Released . | . . . Fabnet Peak Effective % . | . . . Robots Rewired . | . . . Allies Hacked . | . . . Hacks Repelled . | . . . Allies | -11 -10 -9 -------- Run | Yrd Mat Mat Total Allies . | . . . Largest Group . | . . . Highest-Rated Group . | . . . Highest-Rated Ally . | . . . Total Orders . | . . . Ally Attacks . | . . . Total Damage . | . . . Kills . | . . . Allies Corrupted . | . . . Allies Melted . | . . . Intel | -11 -10 -9 ------- Run | Yrd Mat Mat Active Infowar (turns) 531 | 17 351 163 Terrain 314 | 17 297 . Structural 163 | . . 163 T.N.C. 54 | . 54 . Robot Analysis Total . | . . . Derelict Logs Recovered . | . . . Drone Launches . | . . . Drone Recoveries . | . . . Exploration | -11 -10 -9 ------------- Run | Yrd Mat Mat Turns Passed 1344 | 93 607 644 Spaces Moved 745 | 68 420 257 Core 3 | 3 . . Treads . | . . . Legs 15 | . . 15 Wheels 697 | 65 420 212 Hover 30 | . . 30 Flight . | . . . Fastest Speed 50 | 50 90 115 Average Speed 123 | 88 106 160 Slowest Speed 790 | 90 130 790 Overloaded Moves . | . . . Propulsion Burnouts . | . . . Robots Hopped . | . . . Potential Cave-ins . | . . . Cave-ins Triggered . | . . . Exploration Rate (%) 35 | 4 73 30 Regions Visited 2 Branch Regions . Pre-discovered Areas . | . . . Known Exits Taken . | . . . Unknown Exits Taken 2 | 1 1 . Scrap Searched . | . . . Spaces Dug . | . . . Terrain Destroyed 112 | . 50 62 Melee . | . . . Projectile . | . . . AOE 112 | . 50 62 Terrain Rammed . | . . . Walls Destroyed . | . . . Machines Disabled . | . . . Actions | -11 -10 -9 --------- Run | Yrd Mat Mat Total 1063 | 88 563 412 Wait 172 | . 108 64 Move 743 | 67 419 257 Hop . | . . . Pick Up 41 | 7 13 21 Fast Attach . | . . . Attach 18 | 7 1 10 Detach . | . . . Swap 19 | . 7 12 Drop 11 | . 5 6 Fire 59 | 7 10 42 Melee . | . . . Ram . | . . . Kick . | . . . Crush . | . . . Escape Stasis . | . . . Rewire . | . . . Trap . | . . . Miscellaneous . | . . . Route ------- -11/Scrapyard -10/Materials (discovered 4 exits: *Mat x2 / [*Min x2]) -9/Materials History --------- Turn | Location | Event 10 | -11/Scrapyard | Discovered new exit (range 16) 94 | -11/Scrapyard | Entered Materials 94 | -10/Materials | Discovered new exit (range 14) 95 | -10/Materials | Met a group of wandering Federalists 154 | -10/Materials | Discovered new exit (range 14) 310 | -10/Materials | Build established: Mutant 361 | -10/Materials | Discovered new exit (range 16) 630 | -10/Materials | Discovered new exit (range 16) 701 | -10/Materials | Entered another Materials area 701 | -9/Materials | Evolved 2 slots: Propulsion x1, Utility x1 870 | -9/Materials | Core integrity fell below 50% 924 | -9/Materials | Destroyed 7 combat bots 1164 | -9/Materials | Core integrity fell below 20% 1345 | -9/Materials | Self-destructed Last Messages --------------- 01172_ U-05 Engineer lays Concrete. 01176_ U-05 Engineer destroyed. 01181_ Acquired Structural Scanner. 01182_ Dropped Med. Matter Pod. 01183_ Acquired 14 matter. 01186_ Acquired Wheel. 01186_ U-05 Engineer builds a Wall. 01188_ U-05 Engineer destroyed. 01193_ Acquired Terrain Scan Processor. 01195_ Acquired 20 matter. 01204_ Acquired 52 matter. 01220_ Acquired Imp. Hover Unit. 01278_ U-05 Engineer destroyed. 01320_ S-10 Pest destroyed. 01324_ Destroyed Lgt. Ion Engine. 01327_ S-10 Pest destroyed. 01327_ Switching to secondary target: S-10 Pest. 01333_ S-10 Pest destroyed. 01339_ Acquired 9 matter. 01344_ Acquired Lgt. Assault Rifle. Map ----- +----------------------------------------------------+ | ??# ^ =% |"###? | | ??# #????## ###########!"##?? | | ??# #?????# ]] ####### ### ###?? | | ### ##+####+###???#= #?## #!###?? | | "## # ##### ]] #### """ #=##??? | | ! #"" + # "T" # ##??? | | [ #"T ##### # #=##??? | | #"" #???#+##### # ! !# ##??? | | # #??# ??? # # ] #[##??? | | =# """" #??# ???? # ####+### ##??? | | %% # """" #??# ???" # ##??? | | ! # """" #??#????? + ##??? | | ! ###########???????? # ##??? | | ### # ###??# ?? # ##??? | | #"""""""""#??##+#??## ##??? | | #" ##?## #??## ##??? | | # "#### ##?## ###?? | | # "#### ##### ###?? | | # ### ### ##?? | | # ### #""= ##?? | | # # + #"T% ##?? | | # # ### #""! ##?? | | #+## # ### ### ##?? | | ?# " ### ### ##?? | | ""?# """"""###### [%[ ##?? | | Y"?# #"###"###?## = @*%= ##?? | | ???+ ?a %= ##?? | | ?? # k ##?? | | ?? # ##?? | | ? ?# ############ ##?? | | ? ?# #?#############+### ##?? | | #??# ??????????## ######## ##?? | | ???# ????????????????? ### # ##?? | | ???# ???????????????????##### # ##?? | | ???? ???????????????????????### ##?? | | ????????????????????????????????# #??? | | ????????????????????????????????# #??? | | ????????????????????????????????# #??? | | ???????????????################## #??? | | ?????????????? # #??? | | ?????????????? # #??? | | ?????????????? ######### #??? | | ??????????????????##########+####???????# #??? | | ?????????????????????????# #???????# #??? | | ?????????????????????????# "" ######### #??? | | ?????????????????????????# "Y + #??? | | ?????????????????????????# "" ###########??? | | ?????????????????????????# #????????????? | | ?????????????????????????# #????????????? | | ?????????????????????????########????????????? | +----------------------------------------------------+ Best States ------------- Heat Dissipation 28 Energy Generation 10 Energy Capacity 125 Matter Stores 317 Matter Capacity 400 Sight Range 16 Terrain Scan Range 16 Terrain Scan Density 10 Evasion (%) 42 Targeting Accuracy 6 Item Schematics ----------------- None Robot Schematics ------------------ None Fabricated ------------ Nothing Repaired ---------- Nothing Studied --------- None Alien Tech Used ----------------- None Achievements -------------- GoHome() Challenges ------------ None Game ------ Seed VisualArmageddonRailgun Manual? 0 Play Time 00:15:22 Cumulative 9.0 hours Start 2025.12.13 @ 20:02:10 End 2025.12.13 @ 20:15:48 Sessions 1 Manual Loads 0 Difficulty Rogue Special Mode None Game No. 36 Rogue 36 Adventurer 0 Explorer 0 Win Type - Total 0 Types 0/0/0/0/0/0/0/0/0/0 Lore% 7 Gallery% 18 Achievement% 13 Wizard Run 0 Options --------- Layout 1 ASCII 0 Keyboard 0 Movement Mouse Keybinds 0 Fullscreen 1 Font 24/Smallcaps Map View 50x35 Zoom Use 0% Tactical HUD 1 Map Filters NONE Filters NONE Steam 1 RUN: 2db03f03-aa95-459d-8ceb-9760786286b6